bitfinex/quotes_ETHUSD_20251212
["timestamp","ask_amount","ask_price","bid_price","bid_amount"]
[1765500831342,0.497,3217.5,3216.7,0.4734]
[1765500832432,3.1080997,3217.4,3216.7,0.4734]
[1765500832634,0.497,3217.3,3216.7,0.86776028]
[1765500833066,0.497,3217.3,3217.2,0.4534]
[1765500833256,3.1080997,3217.4,3217.2,0.637]
[1765500833449,0.497,3217.3,3217.2,0.637]
[1765500833652,0.497,3217.3,3216.8,0.4734]
[1765500834437,3.10829292,3217.2,3216.3,0.4734]
[1765500834666,6.21658584,3217.2,3216.3,0.4734]
[1765500835571,3.10829292,3217.2,3216.3,0.4734]
[1765500835861,0.497,3217.1,3216.3,0.4734]
[1765500836238,3.10821936,3217.3,3217.0,0.4534]
[1765500836439,0.497,3217.2,3217.0,0.4534]
[1765500836849,0.497,3217.2,3217.1,0.4534]
[1765500837047,3.10780992,3217.7,3217.1,0.637]
[1765500837239,3.10780992,3217.7,3217.2,0.4534]
[1765500837240,0.497,3217.6,3217.2,0.4534]
[1765500838466,3.1080031,3217.5,3217.2,0.4534]
[1765500838664,0.497,3217.4,3217.2,0.4534]
[1765500839866,3.1080031,3217.5,3217.2,0.4534]
[1765500840048,0.497,3217.4,3217.3,0.4534]
[1765500840583,0.4918,3217.8,3217.3,0.4534]
[1765500840584,0.4918,3218.4,3217.3,0.9268]
[1765500840745,0.9888,3218.3,3217.4,0.4534]
[1765500841069,0.497,3218.2,3217.2,0.1836]
[1765500841443,0.4918,3218.1,3216.8,0.4734]
[1765500842270,0.4918,3218.1,3216.5,0.4734]
[1765500842578,0.4918,3218.1,3216.5,3.58231084]
[1765500842579,9.32285028,3217.9,3216.5,3.58231084]
[1765500842871,0.497,3217.8,3216.5,4.25144656]
[1765500843068,0.6841,3217.8,3216.5,3.77804656]
[1765500843371,0.497,3217.7,3216.2,0.4734]
[1765500843683,0.68851397,3217.6,3216.1,0.0404]
[1765500844168,0.9888,3217.5,3216.2,3.10924395]
[1765500844386,0.77277529,3217.8,3216.5,3.10894484]
[1765500844565,3.10790651,3217.6,3216.7,3.10877607]
[1765500845072,0.497,3217.5,3216.8,0.4734]
[1765500846450,0.497,3217.4,3216.8,0.4734]
[1765500846663,0.497,3217.3,3216.8,0.4734]
[1765500846866,0.4918,3218.4,3217.5,0.637]
[1765500847178,0.4918,3218.4,3216.7,3.10874722]
[1765500847179,0.9888,3218.3,3216.7,3.10874722]
[1765500847357,0.9888,3218.3,3217.1,0.1836]
[1765500847554,0.4918,3218.2,3217.1,0.1836]
[1765500847951,0.497,3218.1,3217.1,0.1836]
[1765500848368,0.4918,3218.0,3217.1,0.1836]
[1765500848563,0.4918,3218.0,3216.5,0.4734]
[1765500848768,6.40753352,3217.9,3216.5,0.4734]
[1765500848971,1.00069044,3217.8,3216.5,0.4734]
[1765500849158,1.49249044,3217.8,3216.5,0.4734]
[1765500849365,1.49249044,3217.8,3216.1,3.14973232]
[1765500849366,0.4918,3217.7,3216.1,3.14973232]
[1765500849669,0.497,3217.6,3216.2,0.4734]
[1765500849846,0.497,3217.6,3216.2,3.58265816]
[1765500850051,0.4918,3217.5,3216.1,0.0404]
[1765500850566,0.405504,3217.4,3215.9,0.1841]
[1765500850766,0.405504,3217.1,3215.8,0.001]
[1765500850978,0.58047529,3217.2,3215.8,0.001]
[1765500851278,1.97930642,3217.1,3215.8,0.4744]
[1765500851573,1.48230642,3217.1,3215.8,0.4744]
[1765500851752,0.4918,3217.0,3215.8,0.4744]
[1765500851948,6.21639262,3217.3,3215.9,0.03109549]
[1765500852147,0.9888,3217.2,3215.8,0.4744]
[1765500852563,0.4918,3217.1,3215.8,0.4744]
[1765500852759,0.58047529,3216.9,3215.8,0.001]
[1765500853162,9.32545848,3217.0,3215.8,0.001]
[1765500853163,0.6606,3215.9,3215.8,0.001]
[1765500853485,1.1576,3215.9,3215.8,0.001]
[1765500853782,1.6486,3215.9,3215.8,0.001]
[1765500853968,1.81346,3215.9,3215.8,0.001]
[1765500854784,5.50348471,3215.9,3215.8,0.001]
[1765500855149,5.90898871,3215.9,3215.8,0.001]
[1765500855716,5.41198871,3215.9,3215.8,0.001]
[1765500855885,5.50348471,3215.9,3215.8,0.001]
[1765500856187,5.00648471,3215.9,3215.8,0.001]
[1765500856355,5.50348471,3215.9,3215.8,0.001]
[1765500857356,5.00648471,3215.9,3215.8,0.001]
[1765500857854,5.50348471,3215.9,3215.8,0.001]
[1765500858152,5.90898871,3215.9,3215.8,0.001]
[1765500860921,5.41198871,3215.9,3215.8,0.001]
[1765500861114,5.90898871,3215.9,3215.8,0.001]
[1765500861690,5.41198871,3215.9,3215.8,0.001]
[1765500861879,5.90898871,3215.9,3215.8,0.001]
[1765500862293,5.41198871,3215.9,3215.8,0.001]
[1765500862508,5.90898871,3215.9,3215.8,0.001]
[1765500862812,5.50348471,3215.9,3215.8,0.001]
[1765500862979,5.90898871,3215.9,3215.8,0.001]
[1765500864306,5.41198871,3215.9,3215.8,0.001]
[1765500864482,5.90898871,3215.9,3215.8,0.001]
[1765500868613,9.17298871,3215.9,3215.8,0.001]
[1765500868796,5.90898871,3215.9,3215.8,0.001]
[1765500868992,5.90898871,3215.9,3215.4,0.001]
[1765500868993,0.405504,3215.6,3215.4,0.001]
[1765500869195,0.0486,3214.6,3211.8,3.11343144]
[1765500869394,0.2477,3214.6,3213.3,0.193]
[1765500869721,0.2477,3214.6,3212.1,0.4832]
[1765500869722,0.5222,3213.4,3212.3,3.11296585]
[1765500869895,0.1991,3214.0,3212.2,0.4832]
[1765500870096,0.1991,3214.0,3212.1,0.1975]
[1765500870097,6.2231626,3213.8,3212.3,6.17606854]
[1765500870309,6.2231626,3213.8,3212.4,0.4832]
[1765500870738,0.405504,3213.7,3212.4,0.4832]
[1765500870910,6.721972,3213.9,3212.4,0.4832]
[1765500871113,0.499,3213.8,3212.4,0.4332]
[1765500871498,0.499,3213.8,3213.7,0.6022]
[1765500873413,0.499,3213.8,3213.4,0.143]
[1765500873593,0.499,3213.8,3213.7,0.4592]
[1765500874195,0.499,3213.8,3213.1,0.143]
[1765500874196,7.7078626,3213.8,3213.1,0.143]
[1765500874395,7.7078626,3213.8,3212.6,3.59592221]
[1765500874396,0.0502,3213.6,3212.6,3.59592221]
[1765500874619,7.2112626,3213.8,3212.6,6.70866578]
[1765500874620,4.0996813,3213.8,3212.6,6.70866578]
[1765500874815,4.0996813,3213.8,3212.7,0.4832]
[1765500875095,0.405504,3213.7,3212.7,0.4832]
[1765500875487,4.0996813,3213.8,3212.7,0.4832]
[1765500875890,0.499,3213.8,3212.7,0.4832]
[1765500876102,0.499,3213.7,3212.8,6.2250996]
[1765500876302,0.499,3213.7,3213.6,0.6022]
[1765500876501,0.499,3213.7,3213.6,1.0854]
[1765500876992,3.11118503,3214.3,3213.6,1.0854]
[1765500877193,0.8101185,3214.2,3213.6,1.0854]
[1765500877729,0.4966,3213.7,3213.1,0.143]
[1765500877890,0.9956,3213.7,3213.1,0.143]
[1765500878090,3.11177495,3213.6,3213.1,0.143]
[1765500878291,6.2235499,3213.6,3212.7,0.4832]
[1765500878528,1.21101499,3213.5,3212.2,0.4832]
[1765500878827,1.21101499,3213.5,3212.3,3.11302633]
[1765500879030,0.72191499,3213.5,3212.3,3.11302633]
[1765500879232,0.72191499,3213.5,3212.4,0.4832]
[1765500879397,1.21101499,3213.5,3212.4,0.4832]
[1765500879597,0.74345649,3213.4,3212.4,0.4832]
[1765500879807,3.11177495,3213.6,3212.6,3.11266453]
[1765500880010,0.499,3213.5,3212.7,0.4832]
[1765500880219,3.11196863,3213.4,3212.7,0.4832]
[1765500880532,0.499,3213.5,3212.7,6.70843018]
[1765500880716,0.499,3213.5,3213.4,0.6022]
[1765500880921,0.904504,3213.5,3212.1,0.1975]
[1765500881094,4.01638503,3213.5,3212.2,3.11312427]
[1765500881301,0.8907385,3213.4,3212.2,0.4832]
[1765500881501,0.4966,3212.3,3209.5,0.93458089]
[1765500881700,0.1885,3209.8,3208.2,8.281111]
[1765500882000,0.505,3209.7,3208.3,3.11689157]
[1765500882200,6.22839524,3211.1,3209.7,0.1975]
[1765500882439,0.6882,3210.9,3209.8,2.39901024]
[1765500882642,0.505,3210.8,3209.8,0.4832]
[1765500882928,0.6882,3210.7,3209.9,0.4729]
[1765500884648,0.6882,3210.6,3210.0,0.28300997]
[1765500884944,0.6882,3211.2,3210.6,0.1801]
[1765500885146,0.505,3211.2,3210.6,0.1801]
[1765500885435,0.6882,3211.4,3210.6,0.1801]
[1765500885436,0.505,3211.7,3210.7,0.4729]
[1765500885802,0.6882,3211.6,3210.7,0.4729]
[1765500886136,0.505,3211.7,3210.7,0.4729]
[1765500886338,0.505,3211.7,3210.8,6.2289772]
[1765500886641,0.26404298,3211.9,3210.8,6.2289772]
[1765500886843,0.686643,3211.9,3211.2,0.28300997]
[1765500887340,0.686643,3212.0,3211.3,0.4729]
[1765500887547,3.80002928,3212.0,3211.3,0.4729]
[1765500887702,3.80002928,3212.0,3210.6,3.2947189]
[1765500887703,0.686643,3211.8,3210.8,0.4729]
[1765500887902,0.686643,3211.7,3210.6,0.1801]
[1765500888128,0.686643,3211.5,3210.6,0.1801]
[1765500888519,3.1139067,3211.4,3210.6,0.653]
[1765500889299,3.1139067,3211.4,3210.6,3.76768111]
[1765500889602,0.686643,3211.4,3210.7,0.4729]
[1765500890617,0.686643,3211.5,3210.7,7.07876879]
[1765500890819,0.686643,3211.5,3210.8,0.28300997]
[1765500891020,0.505,3211.6,3210.9,0.4729]
[1765500891421,0.4788,3212.4,3210.9,0.4729]
[1765500891422,3.11284046,3212.5,3211.5,0.4558]
[1765500891630,0.686643,3212.2,3211.5,0.4558]
[1765500891848,0.686643,3212.2,3211.5,0.9287]
[1765500892142,0.686643,3212.2,3211.6,0.4729]
[1765500892442,3.11276017,3212.6,3212.1,0.1801]
[1765500892741,0.686643,3212.6,3212.1,0.1801]
[1765500892913,0.505,3212.7,3212.2,0.4729]
[1765500893607,3.61765929,3212.7,3212.2,0.4729]
[1765500893807,0.505,3212.7,3212.2,0.4729]
[1765500894142,0.405504,3213.4,3212.6,0.4558]
[1765500894348,0.505,3213.3,3212.2,0.4729]
[1765500894648,1.092147,3212.9,3211.8,0.4729]
[1765500894804,0.686643,3212.7,3211.5,0.1801]
[1765500895004,0.686643,3212.5,3211.5,0.653]
[1765500895201,0.686643,3212.5,3211.5,0.1801]
[1765500895406,0.686643,3212.7,3211.6,3.58656972]
[1765500895606,0.686643,3212.7,3212.0,3.11325206]
[1765500895835,0.686643,3212.7,3211.7,0.84956697]
[1765500896001,0.505,3212.8,3212.6,0.4558]
[1765500896603,0.505,3212.8,3212.2,0.4729]
[1765500896819,3.61757638,3212.8,3212.2,0.4729]
[1765500897028,0.505,3212.8,3212.2,0.4729]
[1765500897230,3.61755127,3212.8,3212.2,0.4729]
[1765500897428,3.61758936,3212.8,3212.2,0.4729]
[1765500897632,3.61758936,3212.8,3212.0,3.1133245]
[1765500897633,6.73009985,3212.8,3211.8,0.4729]
[1765500897847,0.405504,3212.7,3211.8,0.4729]
[1765500898056,0.686643,3212.6,3211.8,0.4729]
[1765500898730,3.11284046,3212.5,3211.8,0.4729]
[1765500898928,0.686643,3212.4,3211.8,0.4729]
[1765500899247,0.686643,3212.4,3210.8,3.97792623]
[1765500899248,0.686643,3211.8,3210.8,0.4729]
[1765500899433,0.505,3211.7,3210.8,0.4729]
[1765500900324,0.505,3211.7,3211.0,3.11427457]
[1765500900952,0.505,3211.7,3210.7,6.2291712]
[1765500901142,0.505,3211.7,3211.0,0.4729]
[1765500901341,0.505,3211.7,3210.8,1.42528571]
[1765500901518,3.61862428,3211.7,3210.8,1.42528571]
[1765500901722,0.505,3211.7,3210.9,0.4729]
[1765500902335,0.505,3211.7,3211.0,0.28300997]
[1765500902538,0.505,3211.7,3211.0,0.48214054]
[1765500902826,0.505,3211.7,3211.6,3.56951279]
[1765500903065,3.11304316,3212.3,3211.6,3.56951279]
[1765500903363,0.504,3212.2,3211.7,0.4729]
[1765500903669,3.1125498,3212.8,3211.7,1.2813218]
[1765500903959,0.487543,3212.6,3211.8,0.4729]
[1765500904947,0.487543,3212.4,3211.3,0.4729]
[1765500905147,0.487543,3212.2,3211.3,0.4729]
[1765500905350,0.67132239,3212.3,3211.3,0.4729]
[1765500905351,0.67132239,3212.3,3211.7,3.11356446]
[1765500905543,0.504,3212.4,3212.1,0.1801]
[1765500905742,0.487543,3212.3,3212.1,0.1801]
[1765500906743,0.504,3212.4,3212.1,0.1801]
[1765500906942,0.1093,3212.9,3212.1,0.1801]
[1765500907142,6.7290996,3212.8,3211.8,0.653]
[1765500907356,0.487543,3212.6,3211.5,3.11373672]
[1765500907553,0.487543,3212.6,3211.6,3.11371033]
[1765500907865,0.487543,3212.6,3211.6,0.4729]
[1765500908046,0.487543,3212.6,3211.8,3.11351376]
[1765500908357,0.487543,3212.6,3211.7,0.4729]
[1765500909056,0.487543,3212.4,3211.7,3.58648116]
[1765500909437,0.487543,3212.4,3211.8,0.4729]
[1765500910531,0.487543,3212.3,3211.7,3.11358116]
[1765500910732,0.487543,3212.3,3211.8,0.4729]
[1765500911351,3.11274357,3212.6,3211.8,3.58639633]
[1765500911548,0.487543,3212.5,3211.8,3.58639633]
[1765500911745,0.487543,3212.6,3211.9,0.4729]
[1765500911957,0.503,3212.5,3211.9,0.4729]
[1765500912162,0.487543,3212.6,3211.9,0.4729]
[1765500912364,0.503,3212.6,3212.4,0.4558]
[1765500912548,0.487543,3212.5,3212.4,0.4558]
[1765500912857,0.487543,3212.5,3212.2,0.1801]
[1765500913236,0.487543,3212.5,3212.3,0.4637]
[1765500913435,0.487543,3212.5,3212.4,0.4748]
[1765500914471,3.56200997,3214.1,3212.4,0.4748]
[1765500914472,6.2235499,3213.6,3212.4,0.9385]
[1765500914767,7.46188602,3214.0,3212.5,0.9385]
[1765500914768,3.11170585,3213.7,3212.5,0.9385]
[1765500915059,0.487543,3213.6,3212.6,9.33823071]
[1765500915278,0.487543,3213.9,3212.6,9.80083071]
[1765500915482,0.487543,3213.7,3213.5,0.47]
[1765500915832,0.487543,3213.8,3213.6,0.47]
[1765500916037,0.487543,3213.8,3213.7,0.47]
[1765500916437,0.990543,3213.8,3213.7,0.47]
[1765500916637,0.990543,3213.8,3213.7,0.9326]
[1765500917263,3.279,3212.7,3211.3,3.11395173]
[1765500917466,0.487543,3212.4,3211.4,0.4626]
[1765500917652,0.487543,3212.5,3211.4,0.4626]
[1765500917854,0.504,3212.4,3211.4,0.4626]
[1765500918066,0.487543,3212.3,3211.4,0.4626]
[1765500918242,0.1542,3212.8,3211.4,0.4626]
[1765500918666,0.487543,3212.6,3211.4,0.4626]
[1765500919363,3.26668099,3212.9,3211.5,6.22761948]
[1765500919663,0.504,3212.6,3211.6,5.09797]
[1765500919869,0.504,3212.8,3211.6,0.4626]
[1765500920040,0.487543,3212.7,3211.7,0.4626]
[1765500920763,0.504,3212.6,3211.7,0.4626]
[1765500921155,0.1542,3212.9,3211.7,0.4626]
[1765500921463,3.11217629,3213.2,3211.8,6.22703778]
[1765500921464,0.504,3212.6,3211.8,6.22703778]
[1765500921781,0.504,3212.7,3211.9,0.4626]
[1765500921966,0.504,3212.7,3212.0,0.66896378]
[1765500922378,7.30308379,3213.3,3212.1,0.6582]
[1765500922572,0.504,3213.2,3212.1,0.6582]
[1765500922775,0.487543,3213.1,3212.1,0.6582]
[1765500923237,0.487543,3213.1,3212.1,0.1956]
[1765500923437,0.487543,3212.9,3212.2,3.11313118]
[1765500923969,0.487543,3212.8,3212.2,3.11313118]
[1765500924174,0.504,3212.8,3212.1,3.7714022]
[1765500924353,0.487543,3212.7,3212.1,3.7714022]
[1765500924742,0.504,3212.6,3212.2,0.4626]
[1765500925776,6.22433938,3213.2,3212.2,3.57567578]
[1765500925941,1.23431147,3213.1,3212.2,3.57567578]
[1765500926255,0.487543,3213.0,3212.2,3.57567578]
[1765500927301,0.487543,3212.9,3212.1,0.1956]
[1765500927448,0.487543,3212.8,3212.1,0.1956]
[1765500927645,0.0512,3212.2,3210.6,0.1801]
[1765500927861,0.487543,3211.9,3210.7,3.5771856]
[1765500928244,0.487543,3211.7,3210.8,0.4626]
[1765500928448,0.487543,3211.5,3210.8,0.4626]
[1765500929060,3.11332503,3212.0,3211.4,0.6656]
[1765500929352,0.487543,3211.8,3210.8,0.4626]
[1765500929557,0.487543,3211.8,3210.9,0.66917712]
[1765500930161,3.11361584,3211.7,3211.0,0.4626]
[1765500930678,0.504,3211.6,3211.0,0.4626]
[1765500930975,6.22650638,3212.1,3211.1,0.1956]
[1765500931172,0.504,3212.0,3211.5,0.47]
[1765500931473,0.487543,3212.0,3211.5,0.47]
[1765500931672,0.504,3211.9,3211.5,0.9326]
[1765500931883,3.11264668,3212.7,3211.9,0.47]
[1765500932076,3.11293736,3212.4,3211.9,0.47]
[1765500932278,0.487543,3212.3,3211.9,0.47]
[1765500932470,0.487543,3212.3,3212.0,0.4626]
[1765500932678,0.504,3212.2,3212.1,0.1956]
[1765500933561,1.35869374,3212.2,3211.3,0.4626]
[1765500933759,0.487543,3212.1,3211.3,0.4626]
[1765500934386,0.487543,3211.9,3211.3,0.4626]
[1765500934679,0.487543,3211.9,3211.3,3.57659832]
[1765500935081,0.487543,3211.9,3211.3,0.4626]
[1765500935255,0.487543,3211.9,3211.3,3.57656896]
[1765500935455,0.487543,3211.9,3211.3,3.95379698]
[1765500936184,0.487543,3211.9,3211.3,0.83982802]
[1765500936376,0.487543,3211.8,3211.3,0.4626]
[1765500936683,0.503,3211.7,3211.3,0.4626]
[1765500937365,0.503,3211.7,3211.3,3.57659816]
[1765500937754,3.11293736,3212.4,3211.6,0.47]
[1765500937983,6.22596683,3212.4,3211.6,0.47]
[1765500938185,6.22596683,3212.4,3211.1,0.1956]
[1765500938186,0.0512,3211.7,3211.1,0.1956]
[1765500938404,3.61671279,3211.6,3211.1,0.1956]
[1765500939805,3.61671279,3211.6,3211.1,0.6582]
[1765500940706,6.73042558,3211.6,3210.6,0.6427]
[1765500940857,7.92047871,3211.6,3210.6,0.1801]
[1765500941059,0.487543,3211.5,3210.7,3.57716566]
[1765500941289,0.503,3211.4,3210.7,0.4626]
[1765500941700,0.503,3211.4,3210.7,3.57718308]
[1765500941861,0.503,3211.4,3210.8,3.11446507]
[1765500942058,6.91917871,3211.6,3210.8,3.114477]
[1765500942258,6.91917871,3211.6,3210.8,3.577077]
[1765500942259,3.11371279,3211.6,3210.8,3.577077]
[1765500942596,3.11371279,3211.6,3210.9,0.4626]
[1765500942796,0.503,3211.5,3210.9,3.57696847]
[1765500942971,3.11383714,3211.5,3210.9,0.4626]
[1765500943163,0.503,3211.4,3211.0,0.4965]
[1765500943363,0.1885,3211.9,3211.0,0.4965]
[1765500943578,0.503,3211.8,3211.0,0.4965]
[1765500943892,0.487543,3211.7,3211.1,0.1993]
[1765500944089,3.11351889,3211.8,3211.1,0.1993]
[1765500944282,0.1885,3212.2,3211.7,0.467]
[1765500944455,0.1542,3212.9,3211.7,0.467]
[1765500944456,0.503,3212.1,3211.7,0.467]
[1765500944657,3.11332503,3212.0,3211.2,3.61056353]
[1765500944898,3.11332503,3212.0,3211.2,4.30297836]
[1765500946867,0.1885,3211.9,3210.6,0.1801]
[1765500947073,1.22137529,3211.9,3210.6,0.6766]
[1765500947278,0.4524,3211.8,3210.6,3.79127437]
[1765500947480,0.502,3211.7,3210.6,3.79127437]
[1765500948005,0.502,3211.7,3210.7,3.6110819]
[1765500948314,0.502,3211.6,3210.7,3.6110819]
[1765500948671,0.502,3211.6,3210.8,0.4965]
[1765500948874,6.22761948,3211.5,3210.8,0.4965]
[1765500949306,0.502,3211.4,3210.8,0.4965]
[1765500949474,3.11374632,3211.6,3210.8,3.61098802]
[1765500949680,0.502,3211.5,3210.8,3.61098802]
[1765500949923,0.1885,3211.9,3210.9,0.4965]
[1765500950087,0.4524,3212.2,3211.4,0.467]
[1765500950088,3.1132281,3212.1,3211.4,0.467]
[1765500950282,0.502,3212.0,3211.4,0.467]
[1765500950495,3.1132281,3212.1,3211.5,0.1993]
[1765500950815,0.502,3212.0,3211.5,0.1993]
[1765500951011,0.502,3212.0,3211.6,0.4965]
[1765500951384,0.502,3212.0,3211.9,0.467]
[1765500951589,0.502,3212.0,3211.6,0.4965]
[1765500951890,3.1131464,3212.2,3211.6,0.4965]
[1765500952102,0.502,3211.9,3211.6,0.87746055]
[1765500952317,0.58047529,3212.7,3211.8,0.467]
[1765500952610,0.502,3212.6,3212.1,0.467]
[1765500952994,3.11284046,3212.5,3212.1,0.467]
[1765500953194,0.502,3212.4,3212.1,0.467]
[1765500953586,0.1542,3212.9,3212.3,0.467]
[1765500953587,3.11257037,3212.8,3212.3,0.467]
[1765500953786,0.502,3212.7,3212.4,0.467]
[1765500954095,3.11257037,3212.8,3212.4,0.467]
[1765500954096,0.502,3212.6,3212.4,0.467]
[1765500954497,3.11257037,3212.8,3212.4,0.467]
[1765500954696,3.11257037,3212.8,3212.4,0.9635]
[1765500954697,0.502,3212.7,3212.4,0.9635]
[1765500954899,3.56427179,3213.5,3212.7,0.467]
[1765500955422,3.11187179,3213.5,3212.7,0.9635]
[1765500955786,3.11187179,3213.5,3212.7,4.07614509]
[1765500955986,0.502,3213.4,3212.7,4.07614509]
[1765500956295,0.502,3213.3,3212.7,4.07614509]
[1765500956495,3.11160876,3213.8,3212.8,0.4965]
[1765500956696,0.502,3213.7,3212.8,0.4965]
[1765500957195,3.11177495,3213.6,3212.8,3.60900589]
[1765500957396,0.1562,3214.0,3212.8,6.72155569]
[1765500957612,0.502,3213.8,3212.9,1.16865557]
[1765500957813,3.11351502,3213.9,3212.9,1.16865557]
[1765500957814,0.502,3213.7,3212.9,1.16865557]
[1765500958022,0.502,3213.6,3213.0,0.4965]
[1765500958198,0.002,3213.9,3213.0,0.4965]
[1765500958402,0.502,3213.8,3213.1,0.1993]
[1765500958607,0.002,3213.9,3213.1,0.1993]
[1765500958814,0.502,3213.8,3213.2,0.4965]
[1765500959016,0.002,3213.9,3213.2,0.4965]
[1765500959203,0.502,3213.8,3213.3,3.11206547]
[1765500959403,0.002,3213.9,3213.3,3.11206547]
[1765500959599,0.502,3213.8,3213.4,0.4965]
[1765500959822,0.002,3213.9,3213.8,0.467]
[1765500960193,0.002,3213.9,3213.8,0.9635]
[1765500961237,0.002,3213.9,3213.8,4.5760813]
[1765500961725,0.002,3213.9,3213.8,22.65226359]
[1765500961918,0.002,3213.9,3213.8,20.86543559]
[1765500962134,0.002,3213.9,3213.8,23.26314873]
[1765500962497,0.002,3214.9,3213.8,23.26314873]
[1765500962498,0.002,3214.9,3214.1,0.98597929]
[1765500962794,0.002,3214.9,3214.8,0.6663]
[1765500963304,0.002,3214.9,3214.8,4.27341341]
[1765500965729,0.002,3214.9,3214.8,21.62542841]
[1765500965914,0.002,3214.9,3214.8,24.14914436]
[1765500966096,0.002,3214.9,3214.8,25.13512365]
[1765500966834,0.002,3214.9,3214.8,37.78310865]
[1765500967198,3.10858279,3216.9,3215.5,0.467]
[1765500967433,3.10858279,3216.9,3215.7,6.21948564]
[1765500967728,0.1542,3217.0,3215.7,6.21948564]
[1765500967729,0.1542,3217.0,3215.8,0.72169856]
[1765500967930,3.26268616,3217.0,3215.8,1.21819856]
[1765500968098,3.26268616,3217.0,3215.9,0.4965]
[1765500968300,0.1542,3217.0,3215.9,0.4965]
[1765500968500,3.10828806,3217.3,3215.9,0.4965]
[1765500969399,3.10802257,3217.5,3216.0,9.32835819]
[1765500969599,3.10802257,3217.5,3216.1,1.48348582]
[1765500969823,3.10802257,3217.5,3216.1,2.17928582]
[1765500970134,3.10802257,3217.5,3216.2,0.4965]
[1765500970500,0.4524,3217.4,3216.2,0.4965]
[1765500971551,3.10819631,3217.3,3216.3,3.1091627]
[1765500971846,6.21639262,3217.3,3216.3,0.83976774]
[1765500972013,0.4524,3217.2,3216.1,0.501]
[1765500972219,0.4524,3217.2,3216.1,3.61034266]
[1765500972827,0.4524,3217.2,3216.2,3.10921707]
[1765500973361,0.4524,3217.2,3215.8,0.6958]
[1765500973644,6.21677908,3217.1,3215.8,3.80544078]
[1765500974013,0.4699,3217.0,3215.8,6.9150869]
[1765500974346,0.501,3216.9,3215.8,0.4586]
[1765500974647,0.1542,3216.9,3215.9,0.4586]
[1765500974843,0.5,3216.8,3216.0,0.66778091]
[1765500975224,0.1542,3216.9,3216.1,0.4588]
[1765500975423,3.26279266,3216.9,3216.2,3.10925937]
[1765500975649,0.1542,3216.9,3216.2,3.10925937]
[1765500975821,0.5,3217.0,3216.3,0.81560594]
[1765500976032,0.5,3217.1,3216.3,0.81560594]
[1765500976330,0.4623,3217.8,3216.4,0.4588]
[1765500976535,0.5,3217.4,3216.4,0.4588]
[1765500976925,0.4623,3217.3,3216.3,0.35680594]
[1765500977129,0.4623,3217.3,3216.4,0.39248653]
[1765500978047,6.21658584,3217.2,3216.3,0.35680594]
[1765500978245,6.21658584,3217.2,3216.1,3.10926586]
[1765500978542,0.4623,3217.1,3216.1,3.10926586]
[1765500978738,0.4623,3217.1,3215.9,0.4588]
[1765500978940,0.4623,3217.1,3216.4,3.10905052]
[1765500979246,0.4623,3217.1,3216.0,0.4588]
[1765500979447,0.5,3217.0,3216.3,3.10909083]
[1765500979653,0.5,3217.0,3216.4,0.31090908]
[1765500979856,0.1542,3216.9,3216.4,0.31090908]
[1765500980237,0.6165,3216.9,3216.3,3.10907792]
[1765500980637,0.6165,3216.9,3216.4,3.10905054]
[1765500980837,0.1542,3216.9,3216.4,3.10905054]
[1765500981431,0.1542,3216.9,3216.4,3.10906167]
[1765500982132,0.1542,3216.9,3216.2,3.10925227]
[1765500982333,0.1542,3216.9,3216.3,0.66773638]
[1765500984048,3.10828693,3217.3,3216.3,0.66773638]
[1765500984049,1.04277529,3217.7,3216.4,3.10906603]
[1765500984358,0.4623,3217.4,3216.3,3.10913999]
[1765500985460,0.5,3217.3,3216.3,3.10913999]
[1765500985764,0.5,3217.3,3214.9,0.28300997]
[1765500985765,0.0868,3216.4,3214.9,0.28300997]
[1765500986079,0.0015,3216.3,3215.6,0.44886]
[1765500986374,6.6821254,3216.3,3215.3,3.110129]
[1765500986552,6.6821254,3216.3,3215.0,3.11033887]
[1765500986553,6.6821254,3216.3,3215.0,3.11032495]
[1765500986765,0.4623,3216.2,3214.9,3.11048757]
[1765500986982,0.4623,3216.2,3214.8,0.1993]
[1765500986983,0.97912881,3216.1,3215.0,0.33097876]
[1765500987126,0.499,3216.0,3214.8,0.1993]
[1765500987331,0.499,3216.0,3214.8,3.11059887]
[1765500987332,0.9613,3216.0,3214.8,3.11059887]
[1765500987531,0.9613,3216.0,3214.7,3.1106275]
[1765500987765,0.4623,3215.9,3214.5,3.5696709]
[1765500988064,0.28300997,3215.8,3214.6,0.35696709]
[1765500988376,0.28300997,3215.8,3214.3,3.30658523]
[1765500988377,9.32922846,3215.7,3214.3,3.30658523]
[1765500988561,0.405504,3215.6,3214.3,3.11109157]
[1765500988734,0.867804,3215.6,3214.3,3.11109157]
[1765500989058,0.499,3215.5,3214.3,3.11108207]
[1765500989263,0.4623,3215.5,3214.3,3.42219028]
[1765500989468,0.499,3215.4,3214.3,3.42219028]
[1765500989659,0.499,3215.3,3214.3,6.53328756]
[1765500989854,0.4623,3215.4,3214.4,0.4588]
[1765500990165,0.499,3215.3,3214.5,3.11090371]
[1765500990338,3.60913182,3215.3,3214.6,0.35697037]
[1765500990537,4.07143182,3215.3,3214.4,3.11098491]
[1765500991241,0.9613,3215.3,3214.4,6.2219854]
[1765500991564,0.9613,3215.3,3214.3,0.31110821]
[1765500991565,0.9613,3215.2,3214.3,0.31110821]
[1765500991766,0.9613,3215.2,3214.1,0.4588]
[1765500991767,0.499,3215.1,3214.1,0.4588]
[1765500991951,0.4623,3215.2,3214.4,3.11099968]
[1765500992133,0.499,3215.0,3214.4,3.11099968]
[1765500992334,3.11003453,3215.4,3214.2,6.22230228]
[1765500992533,0.499,3215.3,3214.4,0.4588]